[Event "Titled Tuesday Blitz June 21 Early 2022"]
[White "Agibileg, Uurtsaikh"]
[Black "Ianov, Viktor"]
[WhiteFideId "4901606"]
[BlackFideId "14102730"]
[WhiteElo "2205"]
[BlackElo "2152"]
[Result "1-0"]
[Round "08"]
[TimeControl "180+1"]
[Date "2022.06.21"]
[WhiteClock "0:00:43"]
[BlackClock "0:01:09"]

1. d4 {[%clk 0:02:57]}  d6 {[%clk 0:02:58]} 2. Nf3 {[%clk 0:02:55]}  Bg4 {[%clk 0:02:56]} 3. e4 {[%clk 0:02:54]}  Nf6 {[%clk 0:02:55]} 4. Bd3 {[%clk 0:02:52]}  c6 {[%clk 0:02:55]} 5. O-O {[%clk 0:02:52]}  e6 {[%clk 0:02:55]} 6. Bg5 {[%clk 0:02:51]}  Be7 {[%clk 0:02:55]} 7. Nbd2 {[%clk 0:02:51]}  d5 {[%clk 0:02:55]} 8. e5 {[%clk 0:02:51]}  Nfd7 {[%clk 0:02:54]} 9. Bxe7 {[%clk 0:02:50]}  Qxe7 {[%clk 0:02:54]} 10. h3 {[%clk 0:02:50]}  Bh5 {[%clk 0:02:53]} 11. c3 {[%clk 0:02:42]}  c5 {[%clk 0:02:51]} 12. Qb1 {[%clk 0:02:24]}  Nc6 {[%clk 0:02:49]} 13. Rc1 {[%clk 0:02:10]}  Bg6 {[%clk 0:02:46]} 14. Bxg6 {[%clk 0:02:07]}  hxg6 {[%clk 0:02:46]} 15. b4 {[%clk 0:02:07]}  cxd4 {[%clk 0:02:40]} 16. cxd4 {[%clk 0:02:05]}  Nb6 {[%clk 0:02:40]} 17. b5 {[%clk 0:02:05]}  Na5 {[%clk 0:02:39]} 18. a4 {[%clk 0:02:03]}  O-O {[%clk 0:02:37]} 19. Rc5 {[%clk 0:02:01]}  Nbc4 {[%clk 0:02:36]} 20. Nxc4 {[%clk 0:02:00]}  Nxc4 {[%clk 0:02:36]} 21. Qb4 {[%clk 0:02:01]}  Rfe8 {[%clk 0:02:30]} 22. a5 {[%clk 0:01:57]}  Kf8 {[%clk 0:02:18]} 23. Ng5 {[%clk 0:01:39]}  Kg8 {[%clk 0:02:05]} 24. h4 {[%clk 0:01:36]}  Qd7 {[%clk 0:02:01]} 25. Rc1 {[%clk 0:01:29]}  b6 {[%clk 0:01:59]} 26. axb6 {[%clk 0:01:29]}  axb6 {[%clk 0:01:59]} 27. Rc6 {[%clk 0:01:30]}  Ra2 {[%clk 0:01:52]} 28. Qb3 {[%clk 0:01:26]}  Qa7 {[%clk 0:01:50]} 29. h5 {[%clk 0:01:20]}  gxh5 {[%clk 0:01:47]} 30. Qf3 {[%clk 0:01:20]}  g6 {[%clk 0:01:41]} 31. Qf6 {[%clk 0:01:13]}  Qe7 {[%clk 0:01:40]} 32. Rxe6 {[%clk 0:01:13]}  fxe6 {[%clk 0:01:39]} 33. Qxg6+ {[%clk 0:01:13]}  Kf8 {[%clk 0:01:34]} 34. Nh7+ {[%clk 0:01:12]}  Qxh7 {[%clk 0:01:34]} 35. Qxh7 {[%clk 0:01:13]}  Re7 {[%clk 0:01:34]} 36. Qh8+ {[%clk 0:01:12]}  Kf7 {[%clk 0:01:33]} 37. Rc3 {[%clk 0:01:12]}  Nd2 {[%clk 0:01:26]} 38. Kh2 {[%clk 0:01:00]}  Nf1+ {[%clk 0:01:23]} 39. Kg1 {[%clk 0:00:54]}  Nd2 {[%clk 0:01:21]} 40. Rc8 {[%clk 0:00:44]}  Ra1+ {[%clk 0:01:19]} 41. Kh2 {[%clk 0:00:43]}  Nf1+ {[%clk 0:01:16]} 42. Kh3 {[%clk 0:00:43]}  Ra3+ {[%clk 0:01:16]} 43. g3 {[%clk 0:00:44]}  Nxg3 {[%clk 0:01:09]} 44. Qg8# {[%clk 0:00:43]} 1-0


[Site "https://www.chess.com"]

[Event "Titled Tuesday Blitz June 21 Early 2022"]
[White "Ajay Krishna, S"]
[Black "Agasarov, Benik"]
[WhiteFideId "5096430"]
[BlackFideId "13314823"]
[WhiteElo "2247"]
[BlackElo "2649"]
[Result "1/2-1/2"]
[Round "08"]
[TimeControl "180+1"]
[Date "2022.06.21"]
[WhiteClock "0:00:14"]
[BlackClock "0:00:09"]

1. d4 {[%clk 0:03:00]}  Nf6 {[%clk 0:02:59]} 2. c4 {[%clk 0:02:58]}  e6 {[%clk 0:03:00]} 3. Nf3 {[%clk 0:02:55]}  d5 {[%clk 0:02:57]} 4. g3 {[%clk 0:02:54]}  Be7 {[%clk 0:02:56]} 5. Bg2 {[%clk 0:02:53]}  O-O {[%clk 0:02:56]} 6. O-O {[%clk 0:02:54]}  dxc4 {[%clk 0:02:56]} 7. Ne5 {[%clk 0:02:54]}  Nc6 {[%clk 0:02:56]} 8. Bxc6 {[%clk 0:02:54]}  bxc6 {[%clk 0:02:56]} 9. Nxc6 {[%clk 0:02:55]}  Qe8 {[%clk 0:02:56]} 10. Nxe7+ {[%clk 0:02:56]}  Qxe7 {[%clk 0:02:57]} 11. Qa4 {[%clk 0:02:56]}  e5 {[%clk 0:02:57]} 12. dxe5 {[%clk 0:02:55]}  Qxe5 {[%clk 0:02:58]} 13. Qxc4 {[%clk 0:02:55]}  Be6 {[%clk 0:02:59]} 14. Qc2 {[%clk 0:02:43]}  Bh3 {[%clk 0:02:52]} 15. Re1 {[%clk 0:02:41]}  Bf5 {[%clk 0:02:37]} 16. Qc3 {[%clk 0:02:38]}  Qd5 {[%clk 0:02:35]} 17. f3 {[%clk 0:02:36]}  Bh3 {[%clk 0:02:30]} 18. Bf4 {[%clk 0:02:28]}  Rfe8 {[%clk 0:02:26]} 19. Nd2 {[%clk 0:02:25]}  Rad8 {[%clk 0:02:12]} 20. Nc4 {[%clk 0:02:01]}  Nh5 {[%clk 0:01:41]} 21. Be3 {[%clk 0:01:54]}  Re6 {[%clk 0:01:27]} 22. Bf2 {[%clk 0:01:47]}  Rc6 {[%clk 0:01:17]} 23. b3 {[%clk 0:01:46]}  Rg6 {[%clk 0:01:10]} 24. e4 {[%clk 0:01:37]}  Qc6 {[%clk 0:00:52]} 25. Qe5 {[%clk 0:01:21]}  f5 {[%clk 0:00:44]} 26. exf5 {[%clk 0:01:13]}  Qxf3 {[%clk 0:00:44]} 27. Qe4 {[%clk 0:01:07]}  Qxe4 {[%clk 0:00:18]} 28. Rxe4 {[%clk 0:01:08]}  Bxf5 {[%clk 0:00:18]} 29. Rd4 {[%clk 0:01:06]}  Rxd4 {[%clk 0:00:18]} 30. Bxd4 {[%clk 0:01:06]}  Nf4 {[%clk 0:00:18]} 31. Re1 {[%clk 0:01:04]}  Nh3+ {[%clk 0:00:17]} 32. Kg2 {[%clk 0:01:02]}  Ra6 {[%clk 0:00:17]} 33. a3 {[%clk 0:00:53]}  Ng5 {[%clk 0:00:16]} 34. Re5 {[%clk 0:00:51]}  Be4+ {[%clk 0:00:17]} 35. Kf2 {[%clk 0:00:46]}  Rf6+ {[%clk 0:00:15]} 36. Ke2 {[%clk 0:00:41]}  Bf3+ {[%clk 0:00:14]} 37. Ke3 {[%clk 0:00:38]}  Ne6 {[%clk 0:00:15]} 38. Bc3 {[%clk 0:00:33]}  Bc6 {[%clk 0:00:11]} 39. Ke2 {[%clk 0:00:26]}  Bf3+ {[%clk 0:00:08]} 40. Kd2 {[%clk 0:00:26]}  Nf8 {[%clk 0:00:07]} 41. Re3 {[%clk 0:00:24]}  Rf7 {[%clk 0:00:07]} 42. Ne5 {[%clk 0:00:24]}  Bd5 {[%clk 0:00:05]} 43. Nxf7 {[%clk 0:00:24]}  Kxf7 {[%clk 0:00:06]} 44. Bb4 {[%clk 0:00:21]}  Ne6 {[%clk 0:00:06]} 45. Kc3 {[%clk 0:00:20]}  c5 {[%clk 0:00:06]} 46. Ba5 {[%clk 0:00:20]}  Nd4 {[%clk 0:00:06]} 47. b4 {[%clk 0:00:19]}  Nb5+ {[%clk 0:00:05]} 48. Kb2 {[%clk 0:00:19]}  c4 {[%clk 0:00:06]} 49. a4 {[%clk 0:00:18]}  c3+ {[%clk 0:00:06]} 50. Kc1 {[%clk 0:00:15]}  Nd4 {[%clk 0:00:06]} 51. Rd3 {[%clk 0:00:13]}  Nb3+ {[%clk 0:00:04]} 52. Kc2 {[%clk 0:00:12]}  Be4 {[%clk 0:00:02]} 53. Kxc3 {[%clk 0:00:12]}  Bxd3 {[%clk 0:00:03]} 54. Kxd3 {[%clk 0:00:12]}  Nxa5 {[%clk 0:00:04]} 55. bxa5 {[%clk 0:00:13]}  Ke6 {[%clk 0:00:05]} 56. Kc4 {[%clk 0:00:11]}  Kd6 {[%clk 0:00:05]} 57. Kb5 {[%clk 0:00:11]}  Kc7 {[%clk 0:00:06]} 58. Ka6 {[%clk 0:00:09]}  Kb8 {[%clk 0:00:06]} 59. h3 {[%clk 0:00:10]}  g5 {[%clk 0:00:04]} 60. g4 {[%clk 0:00:09]}  h6 {[%clk 0:00:04]} 61. Kb5 {[%clk 0:00:10]}  Kb7 {[%clk 0:00:04]} 62. Kc5 {[%clk 0:00:10]}  Kc7 {[%clk 0:00:04]} 63. a6 {[%clk 0:00:10]}  Kd7 {[%clk 0:00:05]} 64. Kd5 {[%clk 0:00:11]}  Kc7 {[%clk 0:00:06]} 65. a5 {[%clk 0:00:10]}  Kd7 {[%clk 0:00:06]} 66. Ke5 {[%clk 0:00:11]}  Ke7 {[%clk 0:00:07]} 67. Kf5 {[%clk 0:00:11]}  Kf7 {[%clk 0:00:07]} 68. Ke5 {[%clk 0:00:12]}  Ke7 {[%clk 0:00:08]} 69. Kd5 {[%clk 0:00:12]}  Kd7 {[%clk 0:00:08]} 70. Kc5 {[%clk 0:00:13]}  Kc7 {[%clk 0:00:09]} 71. Kd5 {[%clk 0:00:14]}  Kd7 {[%clk 0:00:09]} 1/2-1/2


[Site "https://www.chess.com"]

[Event "Titled Tuesday Blitz June 21 Early 2022"]
[White "Avazkhonov, Alikhon"]
[Black "Warchol, Kamil"]
[WhiteFideId "14208504"]
[BlackFideId "21858241"]
[WhiteElo "1739"]
[BlackElo "1951"]
[Result "1-0"]
[Round "08"]
[TimeControl "180+1"]
[Date "2022.06.21"]
[WhiteClock "0:00:54"]
[BlackClock "0:00:04"]

1. d4 {[%clk 0:03:00]}  Nf6 {[%clk 0:02:57]} 2. c4 {[%clk 0:02:55]}  e6 {[%clk 0:02:57]} 3. Nc3 {[%clk 0:02:55]}  Bb4 {[%clk 0:02:56]} 4. e3 {[%clk 0:02:55]}  c6 {[%clk 0:02:02]} 5. Nf3 {[%clk 0:02:54]}  d5 {[%clk 0:01:50]} 6. Bd3 {[%clk 0:02:53]}  O-O {[%clk 0:01:42]} 7. O-O {[%clk 0:02:52]}  dxc4 {[%clk 0:01:10]} 8. Bxc4 {[%clk 0:02:53]}  b5 {[%clk 0:01:10]} 9. Bd3 {[%clk 0:02:53]}  Bb7 {[%clk 0:01:10]} 10. Qc2 {[%clk 0:02:53]}  Nbd7 {[%clk 0:01:07]} 11. Bd2 {[%clk 0:02:51]}  a6 {[%clk 0:01:06]} 12. a3 {[%clk 0:02:44]}  Be7 {[%clk 0:01:05]} 13. Ne4 {[%clk 0:02:40]}  c5 {[%clk 0:00:39]} 14. Nxc5 {[%clk 0:02:36]}  Nxc5 {[%clk 0:00:36]} 15. dxc5 {[%clk 0:02:37]}  Bxc5 {[%clk 0:00:36]} 16. Qxc5 {[%clk 0:02:36]}  Qxd3 {[%clk 0:00:34]} 17. Bc3 {[%clk 0:02:30]}  Ne4 {[%clk 0:00:34]} 18. Qd4 {[%clk 0:02:28]}  Qxd4 {[%clk 0:00:26]} 19. Bxd4 {[%clk 0:02:29]}  Rac8 {[%clk 0:00:22]} 20. Rac1 {[%clk 0:02:26]}  f6 {[%clk 0:00:21]} 21. Rfd1 {[%clk 0:02:20]}  Bd5 {[%clk 0:00:18]} 22. Ne1 {[%clk 0:02:17]}  Bb3 {[%clk 0:00:16]} 23. Rxc8 {[%clk 0:02:12]}  Rxc8 {[%clk 0:00:17]} 24. Ra1 {[%clk 0:02:12]}  e5 {[%clk 0:00:15]} 25. Bb6 {[%clk 0:02:09]}  Nd2 {[%clk 0:00:09]} 26. Ba5 {[%clk 0:02:05]}  Nc4 {[%clk 0:00:08]} 27. Bc3 {[%clk 0:02:05]}  Nd6 {[%clk 0:00:07]} 28. Nd3 {[%clk 0:02:04]}  Ne4 {[%clk 0:00:07]} 29. Rc1 {[%clk 0:02:00]}  Kf7 {[%clk 0:00:06]} 30. f3 {[%clk 0:01:59]}  Nxc3 {[%clk 0:00:05]} 31. Rxc3 {[%clk 0:02:00]}  Rxc3 {[%clk 0:00:04]} 32. bxc3 {[%clk 0:02:01]}  Bc4 {[%clk 0:00:03]} 33. Nc5 {[%clk 0:01:58]}  a5 {[%clk 0:00:03]} 34. Kf2 {[%clk 0:01:55]}  Ke7 {[%clk 0:00:03]} 35. e4 {[%clk 0:01:54]}  a4 {[%clk 0:00:03]} 36. Ke3 {[%clk 0:01:53]}  Kd6 {[%clk 0:00:04]} 37. Na6 {[%clk 0:01:53]}  Kc6 {[%clk 0:00:03]} 38. Nb4+ {[%clk 0:01:53]}  Kc5 {[%clk 0:00:03]} 39. g3 {[%clk 0:01:53]}  Bf1 {[%clk 0:00:03]} 40. f4 {[%clk 0:01:53]}  Kc4 {[%clk 0:00:02]} 41. fxe5 {[%clk 0:01:36]}  fxe5 {[%clk 0:00:03]} 42. Nc6 {[%clk 0:01:37]}  Kxc3 {[%clk 0:00:03]} 43. Nxe5 {[%clk 0:01:36]}  b4 {[%clk 0:00:03]} 44. axb4 {[%clk 0:01:32]}  a3 {[%clk 0:00:03]} 45. b5 {[%clk 0:01:21]}  Bxb5 {[%clk 0:00:02]} 46. Nf3 {[%clk 0:01:19]}  a2 {[%clk 0:00:02]} 47. Nd4 {[%clk 0:01:18]}  a1=Q {[%clk 0:00:02]} 48. Nxb5+ {[%clk 0:01:19]}  Kb4 {[%clk 0:00:01]} 49. Nd6 {[%clk 0:01:20]}  Qc3+ {[%clk 0:00:01]} 50. Kf4 {[%clk 0:01:21]}  Qc5 {[%clk 0:00:01]} 51. e5 {[%clk 0:01:21]}  Qc7 {[%clk 0:00:01]} 52. Ne4 {[%clk 0:01:21]}  Qe7 {[%clk 0:00:02]} 53. Kf5 {[%clk 0:01:21]}  Kb5 {[%clk 0:00:02]} 54. e6 {[%clk 0:01:21]}  g6+ {[%clk 0:00:03]} 55. Ke5 {[%clk 0:01:21]}  Kc6 {[%clk 0:00:03]} 56. g4 {[%clk 0:01:22]}  Kc7 {[%clk 0:00:03]} 57. g5 {[%clk 0:01:22]}  h6 {[%clk 0:00:03]} 58. gxh6 {[%clk 0:01:21]}  Kd8 {[%clk 0:00:04]} 59. Nf6 {[%clk 0:01:11]}  Qc5+ {[%clk 0:00:03]} 60. Nd5 {[%clk 0:01:11]}  Qc1 {[%clk 0:00:02]} 61. h7 {[%clk 0:01:05]}  Qh6 {[%clk 0:00:02]} 62. e7+ {[%clk 0:00:59]}  Kd7 {[%clk 0:00:02]} 63. Nf6+ {[%clk 0:00:56]}  Kxe7 {[%clk 0:00:02]} 64. Ng8+ {[%clk 0:00:57]}  Kf8 {[%clk 0:00:03]} 65. Nxh6 {[%clk 0:00:57]}  Kg7 {[%clk 0:00:04]} 66. Ng4 {[%clk 0:00:53]}  Kxh7 {[%clk 0:00:04]} 67. Kf6 {[%clk 0:00:54]} 1-0


[Site "https://www.chess.com"]

[Event "Titled Tuesday Blitz June 21 Early 2022"]
[White "Bharath Subramaniyam H"]
[Black "Alinasab, Mobina"]
[WhiteFideId "46634827"]
[BlackFideId "12528897"]
[WhiteElo "2242"]
[BlackElo "2031"]
[Result "1-0"]
[Round "08"]
[TimeControl "180+1"]
[Date "2022.06.21"]
[WhiteClock "0:01:03"]
[BlackClock "0:00:02"]

1. d4 {[%clk 0:02:58]}  d5 {[%clk 0:02:56]} 2. Nf3 {[%clk 0:02:58]}  Nf6 {[%clk 0:02:56]} 3. c3 {[%clk 0:02:58]}  g6 {[%clk 0:02:53]} 4. Bf4 {[%clk 0:02:56]}  Bg7 {[%clk 0:02:53]} 5. Nbd2 {[%clk 0:02:56]}  c5 {[%clk 0:02:53]} 6. dxc5 {[%clk 0:02:55]}  Nc6 {[%clk 0:02:48]} 7. e3 {[%clk 0:02:51]}  O-O {[%clk 0:02:36]} 8. Be2 {[%clk 0:02:44]}  a5 {[%clk 0:02:30]} 9. Ne5 {[%clk 0:02:04]}  a4 {[%clk 0:02:13]} 10. O-O {[%clk 0:01:52]}  Nxe5 {[%clk 0:02:04]} 11. Bxe5 {[%clk 0:01:51]}  Qa5 {[%clk 0:01:43]} 12. b4 {[%clk 0:01:47]}  axb3 {[%clk 0:01:18]} 13. axb3 {[%clk 0:01:48]}  Qxa1 {[%clk 0:01:18]} 14. Qxa1 {[%clk 0:01:49]}  Rxa1 {[%clk 0:01:19]} 15. Rxa1 {[%clk 0:01:50]}  Ne4 {[%clk 0:01:16]} 16. Bxg7 {[%clk 0:01:47]}  Kxg7 {[%clk 0:01:13]} 17. Nxe4 {[%clk 0:01:43]}  dxe4 {[%clk 0:01:13]} 18. b4 {[%clk 0:01:41]}  Rd8 {[%clk 0:01:12]} 19. Rd1 {[%clk 0:01:40]}  Rf8 {[%clk 0:00:57]} 20. Bc4 {[%clk 0:01:36]}  Bg4 {[%clk 0:00:54]} 21. Rd4 {[%clk 0:01:29]}  Ra8 {[%clk 0:00:54]} 22. h3 {[%clk 0:01:29]}  Bf5 {[%clk 0:00:44]} 23. g4 {[%clk 0:01:27]}  e5 {[%clk 0:00:39]} 24. Rd6 {[%clk 0:01:26]}  Bc8 {[%clk 0:00:29]} 25. Rd8 {[%clk 0:01:24]}  Kf6 {[%clk 0:00:26]} 26. Kg2 {[%clk 0:01:08]}  h5 {[%clk 0:00:26]} 27. Bb5 {[%clk 0:01:01]}  hxg4 {[%clk 0:00:20]} 28. hxg4 {[%clk 0:01:02]}  Kg5 {[%clk 0:00:05]} 29. Bd7 {[%clk 0:01:01]}  Bxd7 {[%clk 0:00:05]} 30. Rxa8 {[%clk 0:01:01]}  Kxg4 {[%clk 0:00:03]} 31. Rb8 {[%clk 0:01:00]}  Bc6 {[%clk 0:00:03]} 32. c4 {[%clk 0:01:00]}  f5 {[%clk 0:00:02]} 33. b5 {[%clk 0:01:01]}  Bd7 {[%clk 0:00:02]} 34. Rxb7 {[%clk 0:01:01]}  Be6 {[%clk 0:00:02]} 35. c6 {[%clk 0:01:02]}  f4 {[%clk 0:00:02]} 36. c7 {[%clk 0:01:03]}  f3+ {[%clk 0:00:02]} 37. Kg1 {[%clk 0:01:03]} 1-0


[Site "https://www.chess.com"]

[Event "Titled Tuesday Blitz June 21 Early 2022"]
[White "Bluebaum, Matthias"]
[Black "Rohith Krishna S"]
[WhiteFideId "24651516"]
[BlackFideId "46617051"]
[WhiteElo "2556"]
[BlackElo "2117"]
[Result "1-0"]
[Round "08"]
[TimeControl "180+1"]
[Date "2022.06.21"]
[WhiteClock "0:01:44"]
[BlackClock "0:01:38"]

1. d4 {[%clk 0:03:00]}  Nf6 {[%clk 0:02:59]} 2. c4 {[%clk 0:03:01]}  e6 {[%clk 0:02:59]} 3. Nc3 {[%clk 0:03:01]}  d5 {[%clk 0:03:00]} 4. cxd5 {[%clk 0:03:01]}  exd5 {[%clk 0:03:00]} 5. Bg5 {[%clk 0:03:01]}  Nbd7 {[%clk 0:02:58]} 6. e3 {[%clk 0:03:01]}  Be7 {[%clk 0:02:56]} 7. Bd3 {[%clk 0:03:01]}  O-O {[%clk 0:02:57]} 8. h3 {[%clk 0:03:01]}  c6 {[%clk 0:02:57]} 9. Qc2 {[%clk 0:03:00]}  Re8 {[%clk 0:02:57]} 10. Nf3 {[%clk 0:02:59]}  Nf8 {[%clk 0:02:49]} 11. O-O {[%clk 0:02:56]}  Nh5 {[%clk 0:02:50]} 12. Bxe7 {[%clk 0:02:42]}  Qxe7 {[%clk 0:02:50]} 13. Rfe1 {[%clk 0:02:40]}  Be6 {[%clk 0:02:50]} 14. Ne5 {[%clk 0:02:37]}  f6 {[%clk 0:02:47]} 15. Nf3 {[%clk 0:02:34]}  g6 {[%clk 0:02:45]} 16. Qd2 {[%clk 0:02:25]}  Rad8 {[%clk 0:02:40]} 17. e4 {[%clk 0:02:21]}  dxe4 {[%clk 0:02:39]} 18. Rxe4 {[%clk 0:02:17]}  Qf7 {[%clk 0:02:38]} 19. Rae1 {[%clk 0:02:15]}  Ng7 {[%clk 0:02:29]} 20. Bc2 {[%clk 0:01:59]}  Bxa2 {[%clk 0:02:22]} 21. Nxa2 {[%clk 0:01:58]}  Qxa2 {[%clk 0:02:21]} 22. Qb4 {[%clk 0:01:58]}  Kh8 {[%clk 0:02:02]} 23. Rxe8 {[%clk 0:01:56]}  Rxe8 {[%clk 0:01:50]} 24. Rxe8 {[%clk 0:01:54]}  Nxe8 {[%clk 0:01:51]} 25. Qxf8+ {[%clk 0:01:54]}  Qg8 {[%clk 0:01:52]} 26. Qe7 {[%clk 0:01:55]}  b5 {[%clk 0:01:49]} 27. Qxa7 {[%clk 0:01:53]}  Qd5 {[%clk 0:01:44]} 28. Qe7 {[%clk 0:01:51]}  Qg8 {[%clk 0:01:38]} 29. Bb3 {[%clk 0:01:44]} 1-0


[Site "https://www.chess.com"]

[Event "Titled Tuesday Blitz June 21 Early 2022"]
[White "Borgaonkar Akshay"]
[Black "Lauridsen, Jesper Morch"]
[WhiteFideId "25639110"]
[BlackFideId "1401890"]
[WhiteElo "1660"]
[BlackElo "2234"]
[Result "1-0"]
[Round "08"]
[TimeControl "180+1"]
[Date "2022.06.21"]
[WhiteClock "0:00:07"]
[BlackClock "0:00:01"]

1. e4 {[%clk 0:02:57]}  c5 {[%clk 0:02:59]} 2. Nf3 {[%clk 0:02:55]}  e6 {[%clk 0:02:58]} 3. b4 {[%clk 0:02:53]}  b6 {[%clk 0:02:56]} 4. bxc5 {[%clk 0:02:48]}  bxc5 {[%clk 0:02:56]} 5. Bb2 {[%clk 0:02:49]}  Bb7 {[%clk 0:02:56]} 6. Nc3 {[%clk 0:02:49]}  Nc6 {[%clk 0:02:55]} 7. d4 {[%clk 0:02:47]}  cxd4 {[%clk 0:02:54]} 8. Nxd4 {[%clk 0:02:48]}  Bb4 {[%clk 0:02:47]} 9. a3 {[%clk 0:02:44]}  Bxc3+ {[%clk 0:02:36]} 10. Bxc3 {[%clk 0:02:44]}  Nf6 {[%clk 0:02:35]} 11. Nb5 {[%clk 0:02:31]}  d5 {[%clk 0:02:07]} 12. e5 {[%clk 0:02:28]}  Ne4 {[%clk 0:02:04]} 13. Nd6+ {[%clk 0:02:09]}  Nxd6 {[%clk 0:02:02]} 14. exd6 {[%clk 0:02:10]}  O-O {[%clk 0:01:56]} 15. Rb1 {[%clk 0:02:04]}  Rb8 {[%clk 0:01:51]} 16. Qg4 {[%clk 0:02:01]}  e5 {[%clk 0:01:45]} 17. Bb5 {[%clk 0:02:00]}  Qxd6 {[%clk 0:01:39]} 18. O-O {[%clk 0:01:53]}  d4 {[%clk 0:01:37]} 19. Bd2 {[%clk 0:01:45]}  f5 {[%clk 0:01:35]} 20. Bc4+ {[%clk 0:01:43]}  Kh8 {[%clk 0:01:34]} 21. Qh4 {[%clk 0:01:42]}  Qg6 {[%clk 0:01:20]} 22. Bd5 {[%clk 0:01:24]}  Rbd8 {[%clk 0:01:05]} 23. Bf3 {[%clk 0:01:03]}  Ba8 {[%clk 0:01:01]} 24. Bh5 {[%clk 0:00:57]}  Qd6 {[%clk 0:00:51]} 25. Rb3 {[%clk 0:00:56]}  d3 {[%clk 0:00:18]} 26. Rxd3 {[%clk 0:00:52]}  Nd4 {[%clk 0:00:18]} 27. Rh3 {[%clk 0:00:49]}  h6 {[%clk 0:00:07]} 28. Bb4 {[%clk 0:00:44]}  Qc6 {[%clk 0:00:07]} 29. Rg3 {[%clk 0:00:42]}  g5 {[%clk 0:00:04]} 30. Qh3 {[%clk 0:00:38]}  f4 {[%clk 0:00:04]} 31. Bxf8 {[%clk 0:00:35]}  fxg3 {[%clk 0:00:04]} 32. fxg3 {[%clk 0:00:22]}  Rxf8 {[%clk 0:00:03]} 33. Rxf8+ {[%clk 0:00:22]}  Kg7 {[%clk 0:00:04]} 34. Rf7+ {[%clk 0:00:22]}  Kg8 {[%clk 0:00:03]} 35. Rf1 {[%clk 0:00:15]}  Qc5 {[%clk 0:00:03]} 36. Kh1 {[%clk 0:00:14]}  Qc4 {[%clk 0:00:02]} 37. Re1 {[%clk 0:00:08]}  Nxc2 {[%clk 0:00:01]} 38. Rd1 {[%clk 0:00:07]} 1-0


[Site "https://www.chess.com"]

[Event "Titled Tuesday Blitz June 21 Early 2022"]
[White "Chigaev, Maksim"]
[Black "Sadhwani, Raunak"]
[WhiteFideId "4108116"]
[BlackFideId "35093487"]
[WhiteElo "2457"]
[BlackElo "2616"]
[Result "1-0"]
[Round "08"]
[TimeControl "180+1"]
[Date "2022.06.21"]
[WhiteClock "0:00:06"]
[BlackClock "0:00:02"]

1. e4 {[%clk 0:03:00]}  e5 {[%clk 0:03:00]} 2. Nf3 {[%clk 0:03:01]}  Nc6 {[%clk 0:03:01]} 3. g3 {[%clk 0:03:01]}  Nf6 {[%clk 0:02:58]} 4. d3 {[%clk 0:03:01]}  g6 {[%clk 0:02:54]} 5. Bg2 {[%clk 0:03:01]}  d5 {[%clk 0:02:54]} 6. exd5 {[%clk 0:03:01]}  Nxd5 {[%clk 0:02:55]} 7. O-O {[%clk 0:03:01]}  Bg7 {[%clk 0:02:55]} 8. Re1 {[%clk 0:03:01]}  O-O {[%clk 0:02:55]} 9. Nbd2 {[%clk 0:02:58]}  h6 {[%clk 0:02:52]} 10. a3 {[%clk 0:02:54]}  a5 {[%clk 0:02:52]} 11. Nc4 {[%clk 0:02:45]}  Re8 {[%clk 0:02:52]} 12. Ne3 {[%clk 0:02:46]}  Be6 {[%clk 0:02:48]} 13. Rb1 {[%clk 0:02:46]}  a4 {[%clk 0:02:45]} 14. Nc4 {[%clk 0:02:37]}  Bc8 {[%clk 0:02:35]} 15. Bd2 {[%clk 0:02:33]}  b6 {[%clk 0:02:32]} 16. Bc3 {[%clk 0:02:12]}  Nxc3 {[%clk 0:02:27]} 17. bxc3 {[%clk 0:02:12]}  Rb8 {[%clk 0:02:27]} 18. Nfd2 {[%clk 0:02:10]}  Bb7 {[%clk 0:02:25]} 19. Ne4 {[%clk 0:02:07]}  Ne7 {[%clk 0:02:17]} 20. h4 {[%clk 0:01:42]}  Nd5 {[%clk 0:02:17]} 21. Ne3 {[%clk 0:01:36]}  Ne7 {[%clk 0:01:58]} 22. c4 {[%clk 0:01:28]}  Qd7 {[%clk 0:01:23]} 23. h5 {[%clk 0:01:27]}  f5 {[%clk 0:01:18]} 24. Nc3 {[%clk 0:01:10]}  Bxg2 {[%clk 0:00:53]} 25. Kxg2 {[%clk 0:01:08]}  g5 {[%clk 0:00:54]} 26. Ncd5 {[%clk 0:01:04]}  Rf8 {[%clk 0:00:37]} 27. Nxe7+ {[%clk 0:00:53]}  Qxe7 {[%clk 0:00:38]} 28. Qf3 {[%clk 0:00:45]}  g4 {[%clk 0:00:26]} 29. Qc6 {[%clk 0:00:38]}  Rbd8 {[%clk 0:00:18]} 30. Nd5 {[%clk 0:00:38]}  Qf7 {[%clk 0:00:17]} 31. Qxc7 {[%clk 0:00:33]}  Rd7 {[%clk 0:00:18]} 32. Qxb6 {[%clk 0:00:31]}  Qxh5 {[%clk 0:00:17]} 33. Qe6+ {[%clk 0:00:24]}  Rdf7 {[%clk 0:00:17]} 34. Rh1 {[%clk 0:00:22]}  Qg5 {[%clk 0:00:17]} 35. Rb7 {[%clk 0:00:19]}  f4 {[%clk 0:00:18]} 36. Rxf7 {[%clk 0:00:17]}  Rxf7 {[%clk 0:00:19]} 37. Rb1 {[%clk 0:00:14]}  Qh5 {[%clk 0:00:04]} 38. Rb7 {[%clk 0:00:13]}  fxg3 {[%clk 0:00:03]} 39. Rxf7 {[%clk 0:00:06]}  Qxf7 {[%clk 0:00:04]} 40. Qxf7+ {[%clk 0:00:03]}  Kxf7 {[%clk 0:00:04]} 41. Kxg3 {[%clk 0:00:02]}  h5 {[%clk 0:00:05]} 42. f3 {[%clk 0:00:03]}  gxf3 {[%clk 0:00:05]} 43. Kxf3 {[%clk 0:00:04]}  Bf8 {[%clk 0:00:05]} 44. Nc3 {[%clk 0:00:03]}  Bxa3 {[%clk 0:00:05]} 45. Nxa4 {[%clk 0:00:04]}  Be7 {[%clk 0:00:05]} 46. Nc3 {[%clk 0:00:04]}  Ke6 {[%clk 0:00:05]} 47. Ne4 {[%clk 0:00:04]}  Kf5 {[%clk 0:00:05]} 48. Ng3+ {[%clk 0:00:04]}  Kg6 {[%clk 0:00:05]} 49. Ne4 {[%clk 0:00:04]}  Kf5 {[%clk 0:00:05]} 50. Ng3+ {[%clk 0:00:04]}  Kg6 {[%clk 0:00:06]} 51. Ke4 {[%clk 0:00:04]}  h4 {[%clk 0:00:06]} 52. Nh1 {[%clk 0:00:05]}  Kf6 {[%clk 0:00:05]} 53. Nf2 {[%clk 0:00:05]}  Ke6 {[%clk 0:00:06]} 54. Nh3 {[%clk 0:00:05]}  Bd8 {[%clk 0:00:06]} 55. c3 {[%clk 0:00:05]}  Bf6 {[%clk 0:00:06]} 56. d4 {[%clk 0:00:05]}  exd4 {[%clk 0:00:04]} 57. cxd4 {[%clk 0:00:06]}  Bd8 {[%clk 0:00:04]} 58. c5 {[%clk 0:00:06]}  Kd7 {[%clk 0:00:04]} 59. Kd5 {[%clk 0:00:05]}  Kc7 {[%clk 0:00:04]} 60. Kc4 {[%clk 0:00:06]}  Be7 {[%clk 0:00:04]} 61. d5 {[%clk 0:00:06]}  Bf8 {[%clk 0:00:04]} 62. Kb5 {[%clk 0:00:06]}  Be7 {[%clk 0:00:05]} 63. Nf4 {[%clk 0:00:07]}  Kb7 {[%clk 0:00:01]} 64. d6 {[%clk 0:00:06]}  Bf6 {[%clk 0:00:02]} 65. c6+ {[%clk 0:00:06]}  Kc8 {[%clk 0:00:02]} 66. Kc5 {[%clk 0:00:06]}  Kd8 {[%clk 0:00:03]} 67. Kd5 {[%clk 0:00:06]}  Ke8 {[%clk 0:00:02]} 68. Ke6 {[%clk 0:00:06]} 1-0


[Site "https://www.chess.com"]